[Event "29th Bosnjaci Open 2025"]
[Site "Bosnjaci"]
[Date "2025.01.07"]
[Round "7.16"]
[White "Starcevic, Ante Leon"]
[Black "Tomic, Stjepan"]
[Result "1-0"]
[ECO "D11"]
[WhiteElo "2200"]
[BlackElo "1978"]
[Annotator "TA"]
[PlyCount "197"]
[EventDate "2025.01.04"]
[EventType "swiss"]
[EventCountry "CRO"]
[SourceTitle "playchess.com"]
[Source "ChessBase"]
[SourceQuality "1"]
[TimeControl "5400+30"]

{[%evp 68,197,116,66,103,83,83,83,85,75,120,85,139,91,117,117,117,109,118,105,124,98,139,124,139,139,146,117,117,117,117,117,117,117,117,117,118,118,118,102,117,79,98,85,102,83,94,71,108,64,103,0,97,96,116,87,108,83,115,81,106,88,107,52,75,75,106,0,68,0,0,0,0,0,61,0,74,0,51,0,91,14,91,0,0,0,14,0,14,14,14,0,14,0,13,0,37,20,43,37,43,43,43,43,25,0,0,0,0,0,110,127,134,132,346,337,450,449,431,422,847,833,748,594,1326,1281,1250,1208,5812,7150,2617,1958]} 1. Nf3 {[%emt 0:00:07]} d5 {[%emt 0:00:19]} 2. d4 {[%emt 0:01:28]} Nf6 {[%emt 0:00:06]} 3. g3 {[%emt 0:00:29]} Bf5 {[%emt 0:00:29]} 4. c4 {[%emt 0:00:58]} c6 {[%emt 0:00:04]} 5. Qb3 {[%emt 0:00:32]} Qb6 {[%emt 0:00:22]} 6. c5 {[%emt 0:00:50] D11: Slav Defence: 3 Nf3 sidelines and 3...Nf6 4 e3 Bg4.} Qxb3 {[%emt 0:00:27]} 7. axb3 {[%emt 0:00:05]} Nbd7 {[%emt 0:03:55]} 8. b4 {[%emt 0:00:19]} Rc8 $146 {[%emt 0:00:29]} ({Predecessor:} 8... a6 9. Nc3 Rc8 10. Nh4 Bc2 11. Kd2 Bg6 12. Nxg6 hxg6 13. Bg2 e6 14. Kc2 Be7 {1-0 Aditya,V (2409)-Seres,L (2378) Budapest FS06 GM 2022 (5)}) 9. Nbd2 {[%emt 0:00:56]} a6 {[%emt 0:00:25]} 10. Nb3 {[%emt 0:00:45]} Ra8 {[%emt 0:07:04]} 11. Na5 {[%emt 0:07:49]} Ra7 {[%emt 0:00:26]} 12. Bf4 {[%emt 0:03:38]} e6 {[%emt 0:06:53]} 13. h3 {[%emt 0:04:24]} Be7 {[%emt 0:02:51]} 14. g4 {[%emt 0:01:08]} Be4 {[%emt 0:00:36]} 15. Rg1 {[%emt 0:03:18]} Bxf3 {[%emt 0:04:40]} 16. exf3 {[%emt 0:00:05]} O-O {[%emt 0:00:07]} 17. Bd3 {[%emt 0:03:54]} Re8 {[%emt 0:07:41]} 18. Kd2 {[%emt 0:01:37]} Nf8 {[%emt 0:02:43]} 19. Bc7 {[%emt 0:11:10]} N6d7 {[%emt 0:01:39]} 20. Kc3 {[%emt 0:06:38]} Bd8 {[%emt 0:02:57]} 21. Bd6 {[%emt 0:08:39]} Be7 {[%emt 0:04:51]} 22. Bg3 {[%emt 0:00:12]} Bf6 {[%emt 0:00:06]} 23. f4 {[%emt 0:00:21]} g6 {[%emt 0:03:05]} 24. Rae1 {[%emt 0:05:51]} Rc8 {[%emt 0:10:37]} 25. Nb3 {[%emt 0:08:18]} Raa8 {[%emt 0:00:48]} 26. Ra1 {[%emt 0:00:27]} Bd8 {[%emt 0:02:02]} 27. Na5 {[%emt 0:02:32]} Bxa5 {[%emt 0:01:53]} 28. bxa5 {[%emt 0:02:07]} f5 {[%emt 0:00:37]} 29. Bh4 {[%emt 0:04:53]} Kf7 {[%emt 0:00:06]} 30. Rae1 {[%emt 0:01:05]} Re8 {[%emt 0:01:24]} 31. Re3 {[%emt 0:01:29]} Nf6 {[%emt 0:01:25]} 32. f3 {[%emt 0:00:15]} N8d7 {[%emt 0:00:09]} 33. Rge1 {[%emt 0:00:24]} Rac8 {[%emt 0:01:55]} 34. Kd2 {[%emt 0:01:06]} Ra8 {[%emt 0:00:55]} 35. Ra1 {[%emt 0:01:26]} (35. b4 $16) 35... Rac8 {[%emt 0:01:08]} 36. Ra4 {[%emt 0:00:15]} Rc7 {[%emt 0:03:03]} 37. Bf1 {[%emt 0:00:29]} Re7 {[%emt 0:05:28]} 38. Rb4 {[%emt 0:00:18]} Nb8 {[%emt 0:01:30]} 39. Reb3 {[%emt 0:00:34]} Red7 {[%emt 0:00:18]} (39... Nbd7 $142 40. Rxb7 Nxc5 41. dxc5 Rxb7) 40. Ke3 {[%emt 0:00:31]} (40. Bd3 $142) 40... Re7 {[%emt 0:00:11]} 41. Kf2 {[%emt 0:00:13]} Red7 {[%emt 0:00:07]} 42. Kg3 {[%emt 0:00:15]} Re7 {[%emt 0:00:27]} 43. Bg5 {[%emt 0:00:09]} Red7 {[%emt 0:00:12]} 44. Bd3 {[%emt 0:01:17]} Re7 {[%emt 0:00:08]} 45. Ra4 {[%emt 0:00:39]} Re8 {[%emt 0:00:23]} 46. Bc2 {[%emt 0:00:23]} Ree7 {[%emt 0:00:36]} 47. Ra1 {[%emt 0:00:22]} Re8 {[%emt 0:00:08]} 48. Rg1 {[%emt 0:00:33]} Nbd7 {[%emt 0:00:14]} 49. Re3 {[%emt 0:00:35]} Rcc8 {[%emt 0:00:07]} 50. Rge1 {[%emt 0:00:16]} Rc7 {[%emt 0:00:58]} 51. R3e2 {[%emt 0:00:42]} Rcc8 {[%emt 0:00:08]} 52. Kf2 {[%emt 0:00:27]} Ra8 {[%emt 0:00:11]} 53. Ke3 {[%emt 0:00:14]} Rac8 {[%emt 0:00:08]} 54. Rg2 {[%emt 0:00:22]} Ra8 {[%emt 0:00:12]} 55. Kf2 {[%emt 0:00:10]} Rac8 {[%emt 0:00:06]} 56. Reg1 {[%emt 0:00:25]} Rg8 {[%emt 0:00:15]} 57. Bh6 {[%emt 0:00:26]} Rb8 {[%emt 0:03:30]} 58. Kg3 {[%emt 0:01:22]} Rge8 {[%emt 0:00:24]} 59. Kf2 {[%emt 0:00:14]} Rg8 $1 {[%emt 0:00:06]} 60. h4 {[%emt 0:00:23]} Rbc8 {[%emt 0:01:22]} 61. Ke3 {[%emt 0:02:11]} Rb8 {[%emt 0:00:23]} 62. Rg3 {[%emt 0:00:17]} Rbc8 {[%emt 0:00:07]} 63. R1g2 {[%emt 0:00:08]} Rb8 {[%emt 0:00:06]} 64. Bd3 {[%emt 0:00:24]} Rbc8 {[%emt 0:00:07]} 65. Be2 {[%emt 0:01:46]} (65. Rh2 $16) 65... Rb8 {[%emt 0:00:07]} 66. Rh3 {[%emt 0:00:15]} Rbc8 {[%emt 0:03:04]} 67. Bg5 {[%emt 0:01:46]} (67. Bd3 $16) 67... Rb8 {[%emt 0:00:30]} (67... h5 $11) 68. Rgh2 {[%emt 0:01:10]} (68. h5 $14) 68... h5 $11 {[%emt 0:02:37]} 69. Rg2 {[%emt 0:00:43]} Rbc8 {[%emt 0:00:16]} 70. Rh1 {[%emt 0:00:50]} Rb8 {[%emt 0:00:08]} (70... Ne8 $11) 71. Rhg1 {[%emt 0:00:36]} (71. Bxf6 $1 $14 Nxf6 72. g5) 71... Rbc8 {[%emt 0:00:07]} (71... Ne8 $11) 72. Kd3 {[%emt 0:00:38]} (72. Bxf6 $1 $16 Nxf6 73. g5) 72... Rb8 {[%emt 0:00:12]} ({Black should try} 72... Ne8 $11) 73. Bd1 {[%emt 0:00:13]} (73. Bxf6 $1 $14 Nxf6 74. g5) 73... Rbc8 {[%emt 0:00:07]} (73... Ne8 $11 {keeps the balance.}) 74. Re1 {[%emt 0:00:07]} (74. Bxf6 $1 $16 Nxf6 75. g5) 74... Rce8 {[%emt 0:00:14] [#]} (74... hxg4 $11 75. fxg4 Nxg4) 75. gxh5 {[%emt 0:01:26]} (75. Bxf6 $1 $16 Kxf6 76. g5+ Ke7 77. Kd2) 75... Nxh5 $11 {[%emt 0:00:54]} 76. Be2 {[%emt 0:00:48]} Rc8 {[%emt 0:00:41]} 77. Bf1 {[%emt 0:00:05]} Rc7 {[%emt 0:01:02]} 78. Rge2 {[%emt 0:00:55]} Re8 {[%emt 0:00:05]} 79. Re3 {[%emt 0:00:18]} Rcc8 {[%emt 0:00:19]} 80. Kc2 {[%emt 0:00:42]} Rc7 {[%emt 0:00:25]} 81. Rb3 {[%emt 0:00:47]} Nhf6 {[%emt 0:00:42]} 82. Ree3 {[%emt 0:00:17]} Nh5 {[%emt 0:02:39]} 83. Rb4 {[%emt 0:00:08]} Ndf6 {[%emt 0:01:50]} 84. Reb3 {[%emt 0:00:42]} Ree7 {[%emt 0:00:05]} 85. Rb6 {[%emt 0:00:19]} Red7 {[%emt 0:01:02]} 86. Bxa6 {[%emt 0:01:30]} bxa6 {[%emt 0:00:05]} 87. Rxa6 {[%emt 0:00:03]} Rd8 $1 {[%emt 0:00:46]} 88. Rab6 {[%emt 0:02:23]} Ra8 {[%emt 0:05:10] [#]} (88... Ke8 $11) 89. Rb7 $1 $16 {[%emt 0:02:20]} Ra7 {[%emt 0:05:21]} 90. a6 {[%emt 0:03:50]} Ke8 $2 {[%emt 0:01:40]} (90... Ng7 $16 91. Rxc7+ Rxc7 92. Bxf6 Kxf6) 91. R3b6 $18 {[%emt 0:00:22]} Kd7 {[%emt 0:01:50]} 92. Rb8 {[%emt 0:00:16]} Ke7 {[%emt 0:03:16]} 93. b4 {[%emt 0:00:20]} Kd7 {[%emt 0:00:11]} (93... Kf7 $142 94. R8b7 Nd7 95. Rxa7 Rxa7 96. Rxc6 Ng3 (96... Nb8 $2 97. Rc8 $18)) 94. Kb3 $18 {[%emt 0:01:39]} Ke7 {[%emt 0:00:46]} 95. Ka4 {[%emt 0:00:05]} Kd7 {[%emt 0:00:33]} 96. Ka5 {[%emt 0:00:09]} Ke7 {[%emt 0:00:15]} 97. R6b7 {[%emt 0:02:43]} Kd7 {[%emt 0:03:24]} 98. Kb6 {[%emt 0:00:29]} Raxb7+ {[%emt 0:00:19]} 99. axb7 {[%emt 0:02:06]} 1-0

[Event "29th Bosnjaci Open 2025"]
[Site "Bosnjaci"]
[Date "2025.01.07"]
[Round "7.17"]
[White "Ekmescic, Tarik"]
[Black "Goric, Esad"]
[Result "1/2-1/2"]
[ECO "C01"]
[WhiteElo "1967"]
[BlackElo "2182"]
[Annotator "TA"]
[PlyCount "22"]
[EventDate "2025.01.04"]
[EventType "swiss"]
[EventCountry "CRO"]
[SourceTitle "playchess.com"]
[Source "ChessBase"]
[SourceQuality "1"]
[TimeControl "5400+30"]

{[%evp 10,22,-10,-23,4,-18,-15,-17,5,-4,0,6,29,17,58]} 1. e4 {[%emt 0:00:07]} e6 {[%emt 0:00:29]} 2. d4 {[%emt 0:00:10]} d5 {[%emt 0:00:03]} 3. exd5 {[%emt 0:00:06]} exd5 {[%emt 0:00:02]} 4. Bf4 {[%emt 0:00:10]} Bd6 {[%emt 0:00:17]} 5. Qd2 {[%emt 0:00:07]} Nf6 {[%emt 0:00:31]} 6. Nc3 {[%emt 0:00:06]} c6 {[%emt 0:00:04]} 7. O-O-O {[%emt 0:01:37]} O-O {[%emt 0:00:28]} 8. f3 {[%emt 0:00:48]} Re8 {[%emt 0:01:05]} 9. g4 {[%emt 0:04:51]} Bxf4 {[%emt 0:03:20]} 10. Qxf4 {[%emt 0:00:42]} Qe7 {[%emt 0:00:41]} 11. Bd3 {[%emt 0:07:29]} Qe3+ {[%emt 0:00:37]} 1/2-1/2

[Event "29th Bosnjaci Open 2025"]
[Site "Bosnjaci"]
[Date "2025.01.07"]
[Round "7.18"]
[White "Topalic, Fran"]
[Black "Colev, Ivor"]
[Result "1/2-1/2"]
[ECO "B52"]
[WhiteElo "1968"]
[BlackElo "2169"]
[Annotator "RC"]
[PlyCount "72"]
[EventDate "2025.01.04"]
[EventType "swiss"]
[EventCountry "CRO"]
[SourceTitle "playchess.com"]
[Source "ChessBase"]
[SourceQuality "1"]
[TimeControl "5400+30"]

1. e4 {[%emt 0:05:45]} c5 {[%emt 0:00:03]} 2. Nf3 {[%emt 0:00:04]} d6 {[%emt 0:00:03]} 3. Bb5+ {[%emt 0:00:03]} Bd7 {[%emt 0:00:03]} 4. Bxd7+ {[%emt 0:00:04]} Qxd7 {[%emt 0:00:04]} 5. c4 {[%emt 0:00:10]} Nc6 {[%emt 0:00:14]} 6. O-O {[%emt 0:00:07]} g6 {[%emt 0:00:16]} 7. d4 {[%emt 0:00:32]} cxd4 {[%emt 0:00:06]} 8. Nxd4 {[%emt 0:00:02]} Bg7 {[%emt 0:01:27]} 9. Be3 {[%emt 0:00:42]} Nf6 {[%emt 0:00:07]} 10. f3 {[%emt 0:00:07]} O-O {[%emt 0:00:26]} 11. Nc3 {[%emt 0:00:05]} a6 {[%emt 0:00:09]} 12. Qd2 {[%emt 0:00:55]} Nxd4 {[%emt 0:02:19]} 13. Bxd4 {[%emt 0:00:11]} b5 {[%emt 0:00:33]} 14. Nd5 {[%emt 0:06:54]} Nxd5 {[%emt 0:05:14]} 15. Bxg7 {[%emt 0:02:06]} Kxg7 {[%emt 0:00:11]} 16. cxd5 {[%emt 0:00:14]} Rfc8 {[%emt 0:12:44]} 17. Rfc1 {[%emt 0:01:06]} Kg8 {[%emt 0:04:38]} 18. Kh1 {[%emt 0:00:26]} h5 {[%emt 0:04:41]} 19. h3 {[%emt 0:00:24]} Qb7 {[%emt 0:17:17]} 20. Rxc8+ {[%emt 0:10:26]} Rxc8 {[%emt 0:00:06]} 21. Rc1 {[%emt 0:00:02]} Rc7 {[%emt 0:03:30]} 22. Kh2 {[%emt 0:01:22]} Qc8 {[%emt 0:01:00]} 23. Rxc7 {[%emt 0:00:03]} Qxc7 {[%emt 0:00:06]} 24. Qb4 {[%emt 0:01:25]} Qc1 {[%emt 0:06:39]} 25. a4 {[%emt 0:09:51]} Qf4+ {[%emt 0:04:58]} 26. Kh1 {[%emt 0:01:06]} Qc1+ {[%emt 0:00:21]} 27. Kh2 {[%emt 0:00:05]} bxa4 {[%emt 0:00:17]} 28. Qxa4 {[%emt 0:00:09]} Qf4+ {[%emt 0:00:27]} 29. Kh1 {[%emt 0:00:13]} Qc1+ {[%emt 0:00:06]} 30. Kh2 {[%emt 0:00:04]} Qxb2 {[%emt 0:06:52]} 31. Qxa6 {[%emt 0:00:12]} Qe5+ {[%emt 0:04:05]} 32. Kh1 {[%emt 0:00:06]} Kg7 {[%emt 0:00:16]} 33. Qd3 {[%emt 0:02:34]} e6 {[%emt 0:03:37]} 34. dxe6 {[%emt 0:01:18]} fxe6 {[%emt 0:00:20]} 35. Qa3 {[%emt 0:02:28]} Qd4 {[%emt 0:04:08]} 36. Qa5 {[%emt 0:01:25]} Kh6 {[%emt 0:07:00]} 1/2-1/2

[Event "29th Bosnjaci Open 2025"]
[Site "Bosnjaci"]
[Date "2025.01.07"]
[Round "7.19"]
[White "Juranovic, Ljudevit"]
[Black "Bosnjak, Nino"]
[Result "1/2-1/2"]
[ECO "E97"]
[WhiteElo "1758"]
[BlackElo "2135"]
[Annotator "RC"]
[PlyCount "103"]
[EventDate "2025.01.04"]
[EventType "swiss"]
[EventCountry "CRO"]
[SourceTitle "playchess.com"]
[Source "ChessBase"]
[SourceQuality "1"]
[TimeControl "5400+30"]

1. d4 {[%emt 0:00:02]} Nf6 {[%emt 0:16:35]} 2. c4 {[%emt 0:00:06]} g6 {[%emt 0:00:08]} 3. Nc3 {[%emt 0:00:05]} Bg7 {[%emt 0:00:10]} 4. Nf3 {[%emt 0:00:19]} O-O {[%emt 0:00:09]} 5. e4 {[%emt 0:00:12]} d6 {[%emt 0:00:08]} 6. Be2 {[%emt 0:00:05]} Nc6 {[%emt 0:00:06]} 7. O-O {[%emt 0:01:07]} e5 {[%emt 0:00:06]} 8. Be3 {[%emt 0:00:12]} Ng4 {[%emt 0:00:21]} 9. Bg5 {[%emt 0:00:15]} f6 {[%emt 0:00:09]} 10. Bc1 {[%emt 0:00:24]} f5 {[%emt 0:02:44]} 11. dxe5 {[%emt 0:00:36]} Ngxe5 {[%emt 0:00:30]} 12. Nxe5 {[%emt 0:08:11]} Nxe5 {[%emt 0:13:49]} 13. Qd5+ {[%emt 0:08:30]} Kh8 {[%emt 0:00:11]} 14. c5 {[%emt 0:02:12]} dxc5 {[%emt 0:00:32]} 15. Qxc5 {[%emt 0:01:29]} c6 {[%emt 0:01:13]} 16. exf5 {[%emt 0:04:15]} Bxf5 {[%emt 0:00:12]} 17. Bh6 {[%emt 0:06:25]} Bxh6 {[%emt 0:01:18]} 18. Qxe5+ {[%emt 0:01:36]} Bg7 {[%emt 0:00:10]} 19. Qc5 {[%emt 0:09:20]} Qb6 {[%emt 0:00:53]} 20. Qxb6 {[%emt 0:02:07]} axb6 {[%emt 0:00:10]} 21. a4 {[%emt 0:11:49]} Rfd8 {[%emt 0:03:05]} 22. Rfd1 {[%emt 0:02:44]} Kg8 {[%emt 0:03:08]} 23. Bc4+ {[%emt 0:08:01]} Kf8 {[%emt 0:00:11]} 24. Bb3 {[%emt 0:02:48]} Rd4 {[%emt 0:12:41]} 25. Rxd4 {[%emt 0:07:10]} Bxd4 {[%emt 0:00:07]} 26. Rd1 {[%emt 0:01:09]} Bf6 {[%emt 0:01:22]} 27. f3 {[%emt 0:02:55]} h5 {[%emt 0:00:54]} 28. Kf2 {[%emt 0:04:29]} Ra5 {[%emt 0:02:43]} 29. Rd2 {[%emt 0:04:20]} Rc5 {[%emt 0:07:59]} 30. Ne4 {[%emt 0:04:04]} Bxe4 {[%emt 0:00:09]} 31. fxe4 {[%emt 0:00:02]} Ke7 {[%emt 0:00:38]} 32. Kf3 {[%emt 0:02:39]} Rc1 {[%emt 0:01:13]} 33. Rd1 {[%emt 0:02:33]} Rc5 {[%emt 0:00:41]} 34. Rd2 {[%emt 0:00:35]} b5 {[%emt 0:00:40]} 35. g4 {[%emt 0:03:54]} bxa4 {[%emt 0:04:41]} 36. Bxa4 {[%emt 0:00:11]} hxg4+ {[%emt 0:03:21]} 37. Kxg4 {[%emt 0:00:12]} Rc4 {[%emt 0:00:47]} 38. Bc2 {[%emt 0:00:32]} Rc5 {[%emt 0:04:37]} 39. Bd3 {[%emt 0:01:52]} Rg5+ {[%emt 0:00:18]} 40. Kf4 {[%emt 0:00:29]} Rh5 {[%emt 0:00:37]} 41. Re2 {[%emt 0:00:31]} Be5+ {[%emt 0:00:13]} 42. Kg4 {[%emt 0:00:13]} Kd6 {[%emt 0:02:31]} 43. Bc4 {[%emt 0:00:46]} Ke7 {[%emt 0:00:39]} 44. h3 {[%emt 0:00:32]} Bf6 {[%emt 0:00:40]} 45. b3 {[%emt 0:00:29]} b5 {[%emt 0:01:34]} 46. Bd3 {[%emt 0:00:14]} Be5 {[%emt 0:03:34]} 47. Rc2 {[%emt 0:00:43]} Kd6 {[%emt 0:00:19]} 48. Rd2 {[%emt 0:00:22]} Kc5 {[%emt 0:01:29]} 49. Rc2+ {[%emt 0:00:18]} Kd6 {[%emt 0:01:45]} 50. Rd2 {[%emt 0:00:53]} Kc5 {[%emt 0:00:54]} 51. Rc2+ {[%emt 0:00:21]} Kd6 {[%emt 0:01:49]} 52. Rd2 {[%emt 0:00:49]} 1/2-1/2

[Event "29th Bosnjaci Open 2025"]
[Site "Bosnjaci"]
[Date "2025.01.07"]
[Round "7.20"]
[White "Simunic, Krunoslav"]
[Black "Pehar, Borna"]
[Result "1-0"]
[ECO "D30"]
[WhiteElo "2122"]
[BlackElo "1954"]
[Annotator "RC"]
[PlyCount "107"]
[EventDate "2025.01.04"]
[EventType "swiss"]
[EventCountry "CRO"]
[SourceTitle "playchess.com"]
[Source "ChessBase"]
[SourceQuality "1"]
[TimeControl "5400+30"]

1. d4 {[%emt 0:00:21]} d5 {[%emt 0:00:08]} 2. c4 {[%emt 0:00:44]} e6 {[%emt 0:00:10]} 3. Nf3 {[%emt 0:00:19]} h6 {[%emt 0:00:19]} 4. g3 {[%emt 0:01:13]} Nf6 {[%emt 0:00:14]} 5. Bg2 {[%emt 0:00:45]} Bd6 {[%emt 0:00:09]} 6. O-O {[%emt 0:00:56]} O-O {[%emt 0:00:10]} 7. b3 {[%emt 0:02:45]} b6 {[%emt 0:00:33]} 8. Nc3 {[%emt 0:05:56]} Bb7 {[%emt 0:02:14]} 9. Nb5 {[%emt 0:02:26]} Be7 {[%emt 0:05:37]} 10. Bf4 {[%emt 0:02:40]} Na6 {[%emt 0:04:26]} 11. Rc1 {[%emt 0:03:30]} Nh5 {[%emt 0:12:56]} 12. Bd2 {[%emt 0:07:58]} c6 {[%emt 0:01:30]} 13. Nc3 {[%emt 0:00:06]} Nf6 {[%emt 0:10:34]} 14. Ne5 {[%emt 0:03:18]} Rc8 {[%emt 0:01:59]} 15. cxd5 {[%emt 0:02:00]} exd5 {[%emt 0:02:04]} 16. Bh3 {[%emt 0:03:28]} Rc7 {[%emt 0:04:23]} 17. Qc2 {[%emt 0:18:29]} Bc8 {[%emt 0:15:06]} 18. Bg2 {[%emt 0:01:10]} Nb4 {[%emt 0:02:05]} 19. Qb1 {[%emt 0:01:43]} Be6 {[%emt 0:01:38]} 20. a3 {[%emt 0:00:48]} Na6 {[%emt 0:00:09]} 21. b4 {[%emt 0:00:38]} Nb8 {[%emt 0:08:48]} 22. Qc2 {[%emt 0:07:27]} Bd6 {[%emt 0:06:39]} 23. f4 {[%emt 0:03:56]} Bc8 {[%emt 0:08:37]} 24. e4 {[%emt 0:06:27]} dxe4 {[%emt 0:05:42]} 25. Nxe4 {[%emt 0:02:34]} Bf5 {[%emt 0:00:58]} 26. Nxf6+ {[%emt 0:01:00]} Qxf6 {[%emt 0:00:05]} 27. Qb2 {[%emt 0:05:54]} c5 {[%emt 0:01:49]} 28. d5 {[%emt 0:02:14]} Qd8 {[%emt 0:04:37]} 29. Bc3 {[%emt 0:02:34]} f6 {[%emt 0:00:18]} 30. Rcd1 {[%emt 0:02:00]} cxb4 {[%emt 0:00:57]} 31. axb4 {[%emt 0:00:13]} Qc8 {[%emt 0:00:22]} 32. Nc6 {[%emt 0:00:51]} Nxc6 {[%emt 0:00:32]} 33. dxc6 {[%emt 0:00:07]} Rxc6 {[%emt 0:00:35]} 34. Bxc6 {[%emt 0:01:16]} Qxc6 {[%emt 0:00:02]} 35. Rc1 {[%emt 0:02:44]} Qb5 {[%emt 0:01:03]} 36. Rfd1 {[%emt 0:01:08]} Bb8 {[%emt 0:00:14]} 37. Qb3+ {[%emt 0:00:46]} Kh8 {[%emt 0:00:41]} 38. Qd5 {[%emt 0:00:38]} Qxd5 {[%emt 0:00:37]} 39. Rxd5 {[%emt 0:00:02]} Be6 {[%emt 0:00:10]} 40. Rd2 {[%emt 0:00:48]} b5 {[%emt 0:00:42]} 41. Re1 {[%emt 0:00:48]} Bf5 {[%emt 0:00:36]} 42. Rd5 {[%emt 0:00:34]} Bh3 {[%emt 0:00:24]} 43. Rxb5 {[%emt 0:01:23]} a6 {[%emt 0:00:27]} 44. Rb7 {[%emt 0:00:35]} Rc8 {[%emt 0:00:30]} 45. Bd4 {[%emt 0:01:29]} Bd6 {[%emt 0:00:33]} 46. Rb6 {[%emt 0:00:26]} Rd8 {[%emt 0:00:35]} 47. Bc5 {[%emt 0:00:30]} Bc7 {[%emt 0:00:30]} 48. Rc6 {[%emt 0:00:30]} Bb8 {[%emt 0:00:31]} 49. Rxa6 {[%emt 0:00:27]} Bc8 {[%emt 0:00:15]} 50. Ra2 {[%emt 0:02:00]} Bb7 {[%emt 0:00:01]} 51. Rae2 {[%emt 0:00:19]} Kh7 {[%emt 0:00:02]} 52. Re8 {[%emt 0:00:15]} Rd2 {[%emt 0:00:15]} 53. Rxb8 {[%emt 0:00:24]} Rg2+ {[%emt 0:00:04]} 54. Kf1 {[%emt 0:00:10]} 1-0